fUST/lending_fUST_20241002
["ID","MTS","AMOUNT","RATE_DAILY","PERIOD"]
[339687514,1727867445793,-500.0,0.00013698,2]
[339687515,1727867445808,-500.0,0.00013698,2]
[339687516,1727867445820,-625.95,0.00013698,2]
[339687517,1727867445831,-716.49,0.00013698,2]
[339687518,1727867445843,-151.0,0.00013698,2]
[339687519,1727867445853,-151.0,0.00013698,2]
[339687520,1727867445864,-500.0,0.00013698,2]
[339687521,1727867445875,-151.0,0.00013698,2]
[339687522,1727867445885,-151.0,0.00013698,2]
[339687523,1727867445896,-151.0,0.00013698,2]
[339687524,1727867445906,-151.0,0.00013698,2]
[339687525,1727867445918,-243.883547,0.00013698,2]
[339687526,1727867445928,-500.0,0.00013698,2]
[339687527,1727867445938,-1298.14,0.00013698,2]
[339687528,1727867445948,-500.0,0.00013698,2]
[339687529,1727867445958,-151.0,0.00013698,2]
[339687531,1727867446142,-151.0,0.00013698,2]
[339687532,1727867446155,-151.0,0.00013698,2]
[339687533,1727867446169,-500.0,0.00013698,2]
[339687534,1727867446186,-151.0,0.00013698,2]
[339687535,1727867446199,-151.0,0.00013698,2]
[339687536,1727867446208,-151.0,0.00013698,2]
[339687537,1727867446219,-151.0,0.00013698,2]
[339687538,1727867446229,-151.0,0.00013698,2]
[339687539,1727867446238,-500.0,0.00013698,2]
[339687540,1727867446248,-500.0,0.00013698,2]
[339687541,1727867446258,-500.0,0.00013698,2]
[339687542,1727867446269,-151.0,0.00013698,2]
[339687543,1727867446279,-157.807734,0.00013698,2]
[339687544,1727867446289,-500.0,0.00013698,2]
[339687545,1727867446300,-556.97,0.00013698,2]
[339687546,1727867446310,-500.0,0.00013698,2]
[339687547,1727867446321,-500.0,0.00013698,2]
[339687548,1727867446331,-500.0,0.00013698,2]
[339687549,1727867446341,-500.0,0.00013698,2]
[339687550,1727867446351,-500.0,0.00013698,2]
[339687551,1727867446361,-500.0,0.00013698,2]
[339687552,1727867446370,-500.0,0.00013698,2]
[339687553,1727867446380,-500.0,0.00013698,2]
[339687554,1727867446390,-500.0,0.00013698,2]
[339687555,1727867446399,-500.0,0.00013698,2]
[339687556,1727867446410,-500.0,0.00013698,2]
[339687557,1727867446434,-500.0,0.00013698,2]
[339687558,1727867446445,-500.0,0.00013698,2]
[339687559,1727867446455,-500.0,0.00013698,2]
[339687560,1727867446466,-500.0,0.00013698,2]
[339687561,1727867446477,-1000.0,0.00013698,2]
[339687562,1727867446488,-500.0,0.00013698,2]
[339687563,1727867446498,-500.0,0.00013698,2]
[339687564,1727867446508,-500.0,0.00013698,2]
[339687565,1727867446519,-152.455442,0.00013698,2]
[339687566,1727867446529,-500.0,0.00013698,2]
[339687567,1727867446540,-500.0,0.00013698,2]
[339687568,1727867446551,-500.0,0.00013698,2]
[339687569,1727867446561,-500.0,0.00013698,2]
[339687570,1727867446571,-500.0,0.00013698,2]
[339687571,1727867446581,-500.0,0.00013698,2]
[339687572,1727867446591,-570.9,0.00013698,2]
[339687573,1727867446600,-500.0,0.00013698,2]
[339687574,1727867446611,-500.0,0.00013698,2]
[339687575,1727867446621,-500.0,0.00013698,2]
[339687576,1727867446632,-1002.87,0.00013698,2]
[339687577,1727867446643,-500.0,0.00013698,2]
[339687578,1727867446653,-500.0,0.00013698,2]
[339687579,1727867446667,-500.0,0.00013698,2]
[339687580,1727867446681,-500.0,0.00013698,2]
[339687581,1727867446691,-508.94073619,0.00013698,2]
[339687582,1727867446701,-500.0,0.00013698,2]
[339687583,1727867446711,-910.32,0.00013698,2]
[339687584,1727867446722,-500.0,0.00013698,2]
[339687585,1727867446732,-500.0,0.00013698,2]
[339687586,1727867446741,-639.10591948,0.00013698,2]
[339687587,1727867446754,-500.0,0.00013698,2]
[339687588,1727867446766,-1015.72,0.00013698,2]
[339687589,1727867446776,-500.0,0.00013698,2]
[339687590,1727867446787,-970.43,0.00013698,2]
[339687591,1727867446798,-500.0,0.00013698,2]
[339687592,1727867446811,-500.0,0.00013698,2]
[339687593,1727867446823,-863.33,0.00013698,2]
[339687594,1727867446833,-500.0,0.00013698,2]
[339687595,1727867446844,-662.75,0.00013698,2]
[339687596,1727867446854,-599.18,0.00013698,2]
[339687597,1727867446864,-876.7,0.00013698,2]
[339687598,1727867446875,-726.81,0.00013698,2]
[339687599,1727867446886,-500.0,0.00013698,2]
[339687600,1727867446898,-1288.46,0.00013698,2]
[339687601,1727867446909,-500.0,0.00013698,2]
[339687602,1727867446925,-500.0,0.00013698,2]
[339687603,1727867446937,-500.0,0.00013698,2]
[339687604,1727867446947,-500.0,0.00013698,2]
[339687605,1727867446956,-500.0,0.00013698,2]
[339687606,1727867446969,-500.0,0.00013698,2]
[339687607,1727867446980,-534.79,0.00013698,2]
[339687608,1727867446990,-619.18,0.00013698,2]
[339687609,1727867447002,-658.89,0.00013698,2]
[339687610,1727867447014,-1197.36,0.00013698,2]
[339687611,1727867447026,-780.08,0.00013698,2]
[339687612,1727867447037,-500.0,0.00013698,2]
[339687613,1727867447047,-500.0,0.00013698,2]
[339687614,1727867447057,-500.0,0.00013698,2]
[339687615,1727867447068,-517.21119377,0.00013698,2]
[339687616,1727867447079,-1135.62,0.00013698,2]
[339687617,1727867447091,-500.0,0.00013698,2]
[339687618,1727867447101,-500.0,0.00013698,2]
[339687619,1727867447112,-500.0,0.00013698,2]
[339687620,1727867447122,-500.0,0.00013698,2]
[339687621,1727867447133,-500.0,0.00013698,2]
[339687622,1727867447143,-500.0,0.00013698,2]
[339687623,1727867447154,-500.0,0.00013698,2]
[339687624,1727867447167,-500.0,0.00013698,2]
[339687625,1727867447177,-500.0,0.00013698,2]
[339687626,1727867447187,-500.0,0.00013698,2]
[339687627,1727867447197,-500.0,0.00013698,2]
[339687628,1727867447207,-500.0,0.00013698,2]
[339687629,1727867447218,-500.0,0.00013698,2]
[339687630,1727867447228,-500.0,0.00013698,2]
[339687631,1727867447237,-500.0,0.00013698,2]
[339687632,1727867447247,-500.0,0.00013698,2]
[339687633,1727867447258,-500.0,0.00013698,2]
[339687634,1727867447268,-841.78,0.00013698,2]
[339687635,1727867447278,-500.0,0.00013698,2]
[339687636,1727867447288,-500.0,0.00013698,2]
[339687637,1727867447300,-500.0,0.00013698,2]
[339687638,1727867447310,-500.0,0.00013698,2]
[339687639,1727867447320,-500.0,0.00013698,2]
[339687640,1727867447331,-151.0,0.00013698,2]
[339687641,1727867447341,-500.0,0.00013698,2]
[339687642,1727867447351,-154.169302,0.00013698,2]
[339687643,1727867447363,-500.0,0.00013698,2]
[339687644,1727867447373,-500.0,0.00013698,2]
[339687645,1727867447383,-500.0,0.00013698,2]
[339687646,1727867447393,-500.0,0.00013698,2]
[339687647,1727867447404,-500.0,0.00013698,2]
[339687648,1727867447417,-500.0,0.00013698,2]
[339687649,1727867447427,-500.0,0.00013698,2]
[339687650,1727867447439,-500.0,0.00013698,2]
[339687651,1727867447450,-500.0,0.00013698,2]
[339687652,1727867447461,-500.0,0.00013698,2]
[339687653,1727867447471,-615.45,0.00013698,2]
[339687654,1727867447482,-500.0,0.00013698,2]
[339687655,1727867447493,-500.0,0.00013698,2]
[339687656,1727867447503,-500.0,0.00013698,2]
[339687657,1727867447514,-500.0,0.00013698,2]
[339687658,1727867447524,-500.0,0.00013698,2]
[339687659,1727867447534,-500.0,0.00013698,2]
[339687660,1727867447546,-500.0,0.00013698,2]
[339687661,1727867447558,-500.0,0.00013698,2]
[339687662,1727867447570,-338.43016805,0.00013698,2]
[339687663,1727867447582,-500.0,0.00013698,2]
[339687664,1727867447593,-500.0,0.00013698,2]
[339687665,1727867447603,-500.0,0.00013698,2]
[339687666,1727867447614,-500.0,0.00013698,2]
[339687667,1727867447625,-500.0,0.00013698,2]
[339687668,1727867447637,-600.55,0.00013698,2]
[339687669,1727867447647,-500.0,0.00013698,2]
[339687670,1727867447657,-600.55,0.00013698,2]
[339687671,1727867447668,-600.55,0.00013698,2]
[339687672,1727867447678,-500.0,0.00013698,2]
[339687673,1727867447688,-600.55,0.00013698,2]
[339687674,1727867447697,-600.55,0.00013698,2]
[339687675,1727867447707,-600.55,0.00013698,2]
[339687676,1727867447716,-600.55,0.00013698,2]
[339687677,1727867447728,-500.0,0.00013698,2]
[339687678,1727867447740,-600.55,0.00013698,2]
[339687679,1727867447750,-600.55,0.00013698,2]
[339687680,1727867447760,-600.55,0.00013698,2]
[339687681,1727867447771,-600.55,0.00013698,2]
[339687682,1727867447781,-600.55,0.00013698,2]
[339687683,1727867447791,-600.55,0.00013698,2]
[339687684,1727867447801,-662.4,0.00013698,2]
[339687685,1727867447812,-393.07040662,0.00013698,2]
[339687686,1727867447822,-600.55,0.00013698,2]
[339687687,1727867447833,-600.55,0.00013698,2]
[339687688,1727867447845,-600.55,0.00013698,2]
[339687689,1727867447856,-600.55,0.00013698,2]
[339687690,1727867447869,-600.55,0.00013698,2]
[339687691,1727867447878,-500.0,0.00013698,2]
[339687692,1727867447900,-600.55,0.00013698,2]
[339687693,1727867447931,-600.55,0.00013698,2]
[339687694,1727867447975,-600.55,0.00013698,2]
[339687695,1727867448013,-600.55,0.00013698,2]
[339687696,1727867448035,-780.07,0.00013698,2]
[339687697,1727867448059,-851.48,0.00013698,2]
[339687698,1727867448085,-600.55,0.00013698,2]
[339687699,1727867448096,-600.62349646,0.00013698,2]
[339687700,1727867448105,-500.0,0.00013698,2]
[339687701,1727867448115,-500.0,0.00013698,2]
[339687702,1727867448124,-500.0,0.00013698,2]
[339687703,1727867448134,-500.0,0.00013698,2]
[339687704,1727867448145,-500.0,0.00013698,2]
[339687705,1727867448154,-500.0,0.00013698,2]
[339687706,1727867448165,-500.0,0.00013698,2]
[339687707,1727867448175,-500.0,0.00013698,2]
[339687708,1727867448185,-220.193667,0.00013698,2]
[339687709,1727867448195,-500.0,0.00013698,2]
[339687710,1727867448205,-500.0,0.00013698,2]
[339687711,1727867448215,-500.0,0.00013698,2]
[339687712,1727867448225,-220.193667,0.00013698,2]
[339687713,1727867448234,-500.0,0.00013698,2]
[339687714,1727867448244,-500.0,0.00013698,2]
[339687715,1727867448253,-500.0,0.00013698,2]
[339687716,1727867448265,-220.193667,0.00013698,2]
[339687717,1727867448275,-500.0,0.00013698,2]
[339687718,1727867448285,-220.193667,0.00013698,2]
[339687719,1727867448295,-500.0,0.00013698,2]
[339687720,1727867448304,-500.0,0.00013698,2]
[339687721,1727867448314,-861.29,0.00013698,2]
[339687722,1727867448324,-500.0,0.00013698,2]
[339687723,1727867448334,-861.29,0.00013698,2]
[339687724,1727867448344,-220.193667,0.00013698,2]
[339687725,1727867448354,-500.0,0.00013698,2]
[339687726,1727867448364,-861.29,0.00013698,2]
[339687727,1727867448374,-500.0,0.00013698,2]
[339687728,1727867448384,-861.29,0.00013698,2]
[339687729,1727867448394,-220.193667,0.00013698,2]
[339687730,1727867448404,-500.0,0.00013698,2]
[339687731,1727867448416,-861.29,0.00013698,2]
[339687732,1727867448426,-500.0,0.00013698,2]
[339687733,1727867448435,-500.0,0.00013698,2]
[339687734,1727867448446,-861.29,0.00013698,2]
[339687735,1727867448456,-255.71771608,0.00013698,2]
[339687736,1727867448466,-861.29,0.00013698,2]
[339687737,1727867448477,-695.93,0.00013698,2]
[339687738,1727867448488,-500.0,0.00013698,2]
[339687739,1727867448497,-861.29,0.00013698,2]
[339687740,1727867448507,-861.29,0.00013698,2]
[339687741,1727867448516,-861.29,0.00013698,2]
[339687742,1727867448526,-861.29,0.00013698,2]
[339687743,1727867448535,-861.29,0.00013698,2]
[339687744,1727867448544,-500.0,0.00013698,2]
[339687745,1727867448554,-220.193667,0.00013698,2]
[339687746,1727867448564,-861.29,0.00013698,2]
[339687747,1727867448574,-220.193667,0.00013698,2]
[339687748,1727867448583,-861.29,0.00013698,2]
[339687749,1727867448732,-220.193667,0.00013698,2]
[339687750,1727867448743,-861.29,0.00013698,2]
[339687751,1727867448753,-861.29,0.00013698,2]
[339687752,1727867448763,-220.193667,0.00013698,2]
[339687753,1727867448773,-500.0,0.00013698,2]
[339687754,1727867448783,-861.29,0.00013698,2]
[339687755,1727867448792,-220.193667,0.00013698,2]
[339687756,1727867448802,-861.29,0.00013698,2]
[339687757,1727867448811,-669.02,0.00013698,2]
[339687758,1727867448822,-861.29,0.00013698,2]
[339687759,1727867448831,-220.193658,0.00013698,2]
[339687760,1727867448841,-861.29,0.00013698,2]
[339687761,1727867448852,-500.0,0.00013698,2]
[339687762,1727867448861,-861.29,0.00013698,2]
[339687763,1727867448872,-861.29,0.00013698,2]
[339687764,1727867448881,-861.29,0.00013698,2]
[339687765,1727867448891,-861.49220599,0.00013698,2]
[339687766,1727867448900,-500.0,0.00013698,2]
[339687767,1727867448911,-500.0,0.00013698,2]
[339687768,1727867448923,-500.0,0.00013698,2]
[339687769,1727867448932,-883.52,0.00013698,2]
[339687770,1727867448941,-500.0,0.00013698,2]
[339687771,1727867448951,-500.0,0.00013698,2]
[339687772,1727867448961,-500.0,0.00013698,2]
[339687773,1727867448970,-500.0,0.00013698,2]
[339687774,1727867448980,-945.73,0.00013698,2]
[339687775,1727867448991,-500.0,0.00013698,2]
[339687776,1727867449003,-500.0,0.00013698,2]
[339687777,1727867449014,-500.0,0.00013698,2]
[339687778,1727867449023,-544.07,0.00013698,2]
[339687779,1727867449033,-500.0,0.00013698,2]
[339687780,1727867449043,-1270.19,0.00013698,2]
[339687781,1727867449053,-500.0,0.00013698,2]
[339687782,1727867449063,-500.0,0.00013698,2]
[339687783,1727867449072,-500.0,0.00013698,2]
[339687784,1727867449084,-1253.79,0.00013698,2]
[339687785,1727867449093,-1335.69,0.00013698,2]
[339687786,1727867449103,-500.0,0.00013698,2]
[339687787,1727867449113,-500.0,0.00013698,2]
[339687788,1727867449123,-500.0,0.00013698,2]
[339687789,1727867449132,-500.0,0.00013698,2]
[339687790,1727867449142,-500.0,0.00013698,2]
[339687791,1727867449151,-500.0,0.00013698,2]
[339687792,1727867449161,-500.0,0.00013698,2]
[339687793,1727867449172,-500.0,0.00013698,2]
[339687794,1727867449182,-1168.46,0.00013698,2]
[339687795,1727867449191,-500.0,0.00013698,2]
[339687796,1727867449200,-503.6785109,0.00013698,2]
[339687797,1727867449209,-903.99231516,0.00013698,2]
[339687819,1727868632344,-604.9933444,0.0001266,2]
[339687820,1727868632355,-69.67285612,0.00012675,2]
[339687821,1727868634386,-96.65953658,0.00012675,2]
[339687822,1727868634397,-330.32261917,0.00013598,2]
[339687874,1727868638366,-399.0,0.00013598,2]
[339688406,1727868643541,-193.43442083,0.00013598,2]
[339688408,1727868643552,-300.0,0.00013672,2]
[339688410,1727868643562,-300.0,0.00013672,2]
[339688412,1727868643572,-500.0,0.00013673,2]
[339688414,1727868643582,-500.0,0.00013673,2]
[339688416,1727868643593,-500.0,0.00013673,2]
[339688419,1727868643604,-172.69367309,0.00013673,2]
[339688421,1727868643616,-549.80656059,0.00013673,2]
[339688423,1727868643626,-500.0,0.00013673,2]
[339688425,1727868643636,-500.0,0.00013673,2]
[339688427,1727868643647,-500.0,0.00013673,2]
[339688429,1727868643657,-382.07119963,0.00013678,2]
[339688431,1727868643669,-28147.94525168,0.00013678,2]
[339688695,1727868646148,-301.24211674,0.00013678,2]
[339688720,1727869117117,150.0,0.00021,60]
[339688721,1727869398239,181.98,0.00021,60]
[339688722,1727869422336,277.31,0.00021,60]
[339688723,1727869653139,-4226.0762825,0.00012079,2]
[339688724,1727869653163,-1070.2980286,0.00012097,2]
[339688725,1727869653185,-163.27239798,0.000125,2]
[339688726,1727869653209,-482.38780283,0.00012532,2]
[339688727,1727869653232,-193.26981215,0.00012532,2]
[339688728,1727869653255,-4092.12219774,0.00013212,2]
[339688729,1727869653278,-300.0,0.00013302,2]
[339688730,1727869653302,-300.0,0.00013302,2]
[339688731,1727869653327,-69236.61940105,0.00013388,2]
[339688732,1727869653349,-254.71413309,0.00013388,2]
[339688733,1727869653373,-29500.3456653,0.00013389,2]
[339688734,1727869653398,-19252.9262349,0.00013389,2]
[339688735,1727869653421,-29500.3456653,0.0001339,2]
[339688736,1727869653445,-19252.9262349,0.0001339,2]
[339688737,1727869653467,-35663.59151026,0.000134,2]
[339688738,1727869653489,-29500.3456653,0.0001349,2]
[339688739,1727869653512,-19252.9262349,0.0001349,2]
[339688740,1727869653535,-30000.0,0.000135,2]
[339688741,1727869653561,-151.0,0.00013567,2]
[339688742,1727869653583,-596.138994,0.00013567,2]
[339688743,1727869653607,-596.138994,0.00013567,2]
[339688744,1727869653631,-151.0,0.00013567,2]
[339688745,1727869653655,-629.466537,0.00013567,2]
[339688746,1727869653679,-629.466537,0.00013567,2]
[339688747,1727869653703,-151.0,0.00013567,2]
[339688748,1727869653727,-386.926379,0.00013567,2]
[339688749,1727869653750,-386.926379,0.00013567,2]
[339688750,1727869653774,-151.0,0.00013567,2]
[339688751,1727869653799,-151.0,0.00013567,2]
[339688752,1727869653821,-151.0,0.00013567,2]
[339688753,1727869653848,-151.0,0.00013567,2]
[339688754,1727869653876,-151.0,0.00013567,2]
[339688755,1727869653901,-229.722925,0.00013567,2]
[339688756,1727869653926,-432.623461,0.00013567,2]
[339688757,1727869653950,-229.722925,0.00013567,2]
[339688758,1727869653971,-432.623461,0.00013567,2]
[339688759,1727869653993,-921.091216,0.00013567,2]
[339688760,1727869654016,-151.0,0.00013567,2]
[339688761,1727869654038,-921.091216,0.00013567,2]
[339688762,1727869654063,-1345.79260783,0.00013568,2]
[339688819,1727869838382,-300.0,0.00013566,2]
[339688821,1727869838394,-41.51697593,0.00013566,2]
[339688878,1727869840351,-258.48302407,0.00013566,2]
[339688881,1727869840363,-151.0,0.00013567,2]
[339688883,1727869840374,-151.0,0.00013567,2]
[339688885,1727869840386,-152.34487715,0.00013567,2]
[339688889,1727869840419,-177.06837585,0.00013567,2]
[339688892,1727869840430,-329.413253,0.00013567,2]
[339688894,1727869840441,-536.730679,0.00013567,2]
[339688896,1727869840461,-536.730679,0.00013567,2]
[339688898,1727869840473,-169.80942206,0.00013567,2]
[339688900,1727869840484,-50016.0083703,0.00013568,2]
[339688903,1727869840496,-2460.80583392,0.00013568,2]
[339688905,1727869840505,-118622.12478527,0.00013578,2]
[339688907,1727869840514,-151.0,0.00013578,2]
[339688909,1727869840524,-596.138994,0.00013578,2]
[339688911,1727869840535,-151.0,0.00013578,2]
[339688913,1727869840545,-629.466537,0.00013578,2]
[339688915,1727869840556,-389.037628,0.00013578,2]
[339688917,1727869840567,-629.466537,0.00013578,2]
[339688919,1727869840579,-389.037628,0.00013578,2]
[339688921,1727869840589,-386.926379,0.00013578,2]
[339688923,1727869840599,-386.926379,0.00013578,2]
[339688926,1727869840610,-151.0,0.00013578,2]
[339688928,1727869840620,-550.160123,0.00013578,2]
[339688930,1727869840629,-550.160123,0.00013578,2]
[339688932,1727869840639,-151.0,0.00013578,2]
[339688934,1727869840649,-151.0,0.00013578,2]
[339688935,1727869840658,-151.0,0.00013578,2]
[339688938,1727869840669,-229.722925,0.00013578,2]
[339688940,1727869840678,-229.722925,0.00013578,2]
[339688942,1727869840689,-432.623461,0.00013578,2]
[339688944,1727869840700,-432.623461,0.00013578,2]
[339688946,1727869840709,-921.091216,0.00013578,2]
[339688948,1727869840718,-921.091216,0.00013578,2]
[339688949,1727869840728,-157.49175,0.00013578,2]
[339688952,1727869840737,-151.0,0.00013578,2]
[339688953,1727869840746,-329.413253,0.00013578,2]
[339688955,1727869840755,-329.413253,0.00013578,2]
[339688957,1727869840764,-536.730679,0.00013578,2]
[339688959,1727869840774,-536.730679,0.00013578,2]
[339688961,1727869840783,-1000.0,0.00013578,2]
[339688963,1727869840793,-933.15169998,0.00013598,2]
[339688966,1727869840802,-153.0,0.000136,2]
[339688967,1727869840812,-150.112233,0.000136,2]
[339688970,1727869840821,-25008.0041851,0.0001362,2]
[339688972,1727869840831,-1230.40291696,0.0001362,2]
[339688974,1727869840841,-25008.0041851,0.00013658,2]
[339688976,1727869840850,-1230.40291696,0.00013658,2]
[339688977,1727869840860,-596.138994,0.00013659,2]
[339688980,1727869840869,-629.466537,0.00013659,2]
[339688982,1727869840880,-629.466537,0.00013659,2]
[339688983,1727869840889,-386.926379,0.00013659,2]
[339688985,1727869840899,-386.926379,0.00013659,2]
[339688987,1727869840914,-151.0,0.00013659,2]
[339688989,1727869840924,-151.0,0.00013659,2]
[339688991,1727869840934,-151.0,0.00013659,2]
[339688993,1727869840944,-151.0,0.00013659,2]
[339688995,1727869840955,-229.722925,0.00013659,2]
[339688997,1727869840965,-229.722925,0.00013659,2]
[339688999,1727869840975,-432.623461,0.00013659,2]
[339689001,1727869840990,-432.623461,0.00013659,2]
[339689003,1727869841000,-921.091216,0.00013659,2]
[339689005,1727869841010,-921.091216,0.00013659,2]
[339689007,1727869841021,-151.0,0.00013659,2]
[339689009,1727869841032,-329.413253,0.00013659,2]
[339689011,1727869841041,-329.413253,0.00013659,2]
[339689013,1727869841051,-536.730679,0.00013659,2]
[339689016,1727869841061,-536.730679,0.00013659,2]
[339689018,1727869841071,-25008.0041851,0.00013668,2]
[339689020,1727869841081,-1230.40291696,0.00013668,2]
[339689022,1727869841091,-25008.0041851,0.00013668,2]
[339689023,1727869841100,-1230.40291696,0.00013668,2]
[339689025,1727869841110,-2417.8,0.0001367,2]
[339689027,1727869841120,-500.0,0.00013673,2]
[339689029,1727869841129,-500.0,0.00013673,2]
[339689031,1727869841150,-500.0,0.00013673,2]
[339689034,1727869841162,-500.0,0.00013673,2]
[339689036,1727869841171,-201.47085096,0.00013673,2]
[339689038,1727869841180,-500.08995096,0.00013673,2]
[339689040,1727869841190,-500.0,0.00013673,2]
[339689042,1727869841200,-500.0,0.00013673,2]
[339689044,1727869841209,-500.0,0.00013673,2]
[339689046,1727869841218,-501.17497356,0.00013673,2]
[339689048,1727869841227,-500.34128355,0.00013673,2]
[339689050,1727869841236,-151.0,0.00013673,2]
[339689052,1727869841246,-151.0,0.00013673,2]
[339689053,1727869841255,-389.037628,0.00013673,2]
[339689055,1727869841264,-389.037628,0.00013673,2]
[339689057,1727869841274,-550.160123,0.00013673,2]
[339689059,1727869841283,-550.160123,0.00013673,2]
[339689061,1727869841295,-19113.49412557,0.00013678,2]
[339689063,1727869841304,-51927.46455078,0.00013678,2]
[339689065,1727869841313,-192.744409,0.00013678,2]
[339689067,1727869841322,-192.744409,0.00013678,2]
[339689069,1727869841331,-596.138994,0.00013678,2]
[339689071,1727869841340,-629.466537,0.00013678,2]
[339689073,1727869841349,-629.466537,0.00013678,2]
[339689075,1727869841359,-386.926379,0.00013678,2]
[339689077,1727869841368,-386.926379,0.00013678,2]
[339689079,1727869841378,-197.057786,0.00013678,2]
[339689081,1727869841388,-156.477002,0.00013678,2]
[339689083,1727869841398,-151.0,0.00013678,2]
[339689085,1727869841407,-151.0,0.00013678,2]
[339689088,1727869841419,-229.722925,0.00013678,2]
[339689090,1727869841429,-229.722925,0.00013678,2]
[339689092,1727869841438,-432.623461,0.00013678,2]
[339689094,1727869841448,-432.623461,0.00013678,2]
[339689096,1727869841458,-921.091216,0.00013678,2]
[339689098,1727869841467,-921.091216,0.00013678,2]
[339689100,1727869841477,-151.0,0.00013678,2]
[339689102,1727869841485,-329.413253,0.00013678,2]
[339689104,1727869841494,-329.413253,0.00013678,2]
[339689106,1727869841504,-536.730679,0.00013678,2]
[339689108,1727869841513,-536.730679,0.00013678,2]
[339689109,1727869841522,-151.0,0.00013678,2]
[339689112,1727869841532,-428.667394,0.00013678,2]
[339689114,1727869841541,-151.0,0.00013678,2]
[339689116,1727869841551,-428.667394,0.00013678,2]
[339689118,1727869841560,-151.0,0.00013678,2]
[339689120,1727869841569,-287.389212,0.00013678,2]
[339689121,1727869841578,-151.0,0.00013678,2]
[339689124,1727869841588,-287.389212,0.00013678,2]
[339689125,1727869841598,-174.647,0.0001368,2]
[339689127,1727869841608,-151.0,0.00013688,2]
[339689147,1727869841775,-192.744409,0.00013688,2]
[339689149,1727869841787,-192.744409,0.00013688,2]
[339689151,1727869841796,-100032.016741,0.00013688,2]
[339689153,1727869841806,-17225.6408374,0.00013688,2]
[339689155,1727869841815,-336.23298566,0.00013697,2]
[339689158,1727869841825,-500.0,0.00013698,2]
[339689159,1727869841834,-500.0,0.00013698,2]
[339689162,1727869841843,-500.0,0.00013698,2]
[339689163,1727869841852,-500.0,0.00013698,2]
[339689166,1727869841861,-225.21203693,0.00013698,2]
[339689168,1727869841871,-500.0,0.00013698,2]
[339689170,1727869841881,-500.0,0.00013698,2]
[339689172,1727869841890,-500.0,0.00013698,2]
[339689174,1727869841899,-603.89825986,0.00013698,2]
[339689175,1727869841913,-500.0,0.00013698,2]
[339689178,1727869841922,-500.0,0.00013698,2]
[339689180,1727869841932,-500.0,0.00013698,2]
[339689182,1727869841941,-500.0,0.00013698,2]
[339689183,1727869841951,-500.0,0.00013698,2]
[339689185,1727869841960,-208.04387666,0.00013698,2]
[339689187,1727869841970,-500.0,0.00013698,2]
[339689189,1727869841979,-500.0,0.00013698,2]
[339689192,1727869841989,-500.0,0.00013698,2]
[339689194,1727869841999,-500.0,0.00013698,2]
[339689196,1727869842010,-500.0,0.00013698,2]
[339689198,1727869842019,-608.89,0.00013698,2]
[339689200,1727869842028,-500.0,0.00013698,2]
[339689202,1727869842038,-226.57305534,0.00013698,2]
[339689204,1727869842047,-500.0,0.00013698,2]
[339689206,1727869842056,-508.36860991,0.00013698,2]